bitfinex/quotes_ETHUSD_20241124
["timestamp","ask_amount","ask_price","bid_price","bid_amount"]
[1732418495951,0.43298164,3425.2,3424.0,0.8197]
[1732418495952,0.27061353,3425.0,3424.0,0.8197]
[1732418496152,0.43295911,3425.2,3424.0,0.8197]
[1732418496359,0.27059787,3425.1,3424.0,0.8197]
[1732418496596,0.27059787,3425.0,3424.0,0.8197]
[1732418496791,0.43295911,3425.2,3424.0,0.8197]
[1732418496792,0.27059787,3424.9,3424.0,0.8197]
[1732418496994,0.43295911,3425.2,3424.0,0.8197]
[1732418497198,0.27059099,3425.1,3424.0,0.8197]
[1732418497373,0.27059099,3425.0,3424.0,0.8197]
[1732418497579,0.27059099,3424.9,3424.0,0.8197]
[1732418497783,0.43295911,3425.2,3424.0,0.8197]
[1732418498100,0.27057932,3425.1,3424.0,0.8197]
[1732418498262,0.27057932,3425.0,3424.0,0.8197]
[1732418498463,3.21690592,3425.3,3424.0,0.8197]
[1732418498689,0.70350725,3425.2,3424.0,0.8197]
[1732418498902,0.27054814,3425.1,3424.0,0.8197]
[1732418499087,0.27054814,3425.0,3424.0,0.8197]
[1732418499405,0.43295911,3425.2,3424.0,0.8197]
[1732418499592,0.27049652,3425.1,3424.0,0.8197]
[1732418499776,0.27049652,3425.0,3424.0,0.8197]
[1732418500098,3.21674777,3425.3,3424.0,0.8197]
[1732418500310,0.2704781,3425.2,3423.9,0.2909]
[1732418500506,0.2704781,3425.1,3424.4,0.8197]
[1732418500716,0.2704781,3425.2,3424.4,0.8197]
[1732418501012,0.27047215,3425.1,3424.4,0.8197]
[1732418501214,2.78394681,3425.3,3424.4,0.8197]
[1732418501437,0.27045171,3425.2,3424.4,0.8197]
[1732418501607,0.27045171,3425.1,3424.4,0.8197]
[1732418501928,3.58854681,3425.4,3424.4,0.8197]
[1732418502226,0.70311478,3425.3,3424.4,0.8197]
[1732418502399,0.27044225,3425.2,3424.4,0.8197]
[1732418502597,0.27044225,3425.1,3424.4,0.8197]
[1732418502839,0.43267253,3425.3,3424.4,0.8197]
[1732418503044,0.27042266,3425.2,3424.4,0.8197]
[1732418503336,0.27042266,3425.1,3424.4,0.8197]
[1732418503509,0.43267253,3425.3,3424.4,0.8197]
[1732418503707,0.27041007,3425.2,3424.4,0.8197]
[1732418503948,0.27041007,3425.1,3424.4,0.8197]
[1732418504097,0.27041007,3425.0,3424.4,0.8197]
[1732418504433,0.43267253,3425.3,3424.4,0.8197]
[1732418504635,0.27039836,3425.2,3424.4,0.8197]
[1732418504840,0.27039836,3425.1,3424.4,0.8197]
[1732418505138,0.27039836,3425.0,3424.4,0.8197]
[1732418505318,0.43267253,3425.3,3424.4,0.8197]
[1732418505524,0.27045373,3425.2,3424.4,0.8197]
[1732418505724,0.27045373,3425.1,3424.4,0.8197]
[1732418505925,0.27045373,3425.0,3424.4,0.8197]
[1732418506125,0.43267253,3425.3,3424.4,0.8197]
[1732418506348,0.27050673,3425.2,3424.4,0.8197]
[1732418506530,2.78394681,3425.0,3424.4,0.8197]
[1732418506716,1.04480673,3424.9,3423.6,0.2909]
[1732418506914,0.27050673,3424.8,3423.8,0.2909]
[1732418507114,0.7743,3424.9,3423.9,0.8197]
[1732418507315,0.26820022,3424.8,3423.9,0.8197]
[1732418509905,1.20770018,3424.9,3423.9,0.8197]
[1732418512300,2.78394681,3424.6,3423.9,0.8197]
[1732418513515,3.21780551,3424.6,3423.9,0.8197]
[1732418513744,1.2081587,3424.5,3423.9,0.8197]
[1732418514609,1.2081587,3424.5,3423.4,0.7601]
[1732418515544,2.78394681,3424.2,3423.4,0.7601]
[1732418519416,0.27074387,3424.1,3423.4,0.7601]
[1732418519614,0.27074387,3424.0,3423.4,0.7601]
[1732418519853,0.27074387,3423.9,3423.4,0.7601]
[1732418520049,0.43351827,3424.1,3423.4,0.7601]
[1732418520355,0.27072648,3424.0,3423.4,0.7601]
[1732418520524,0.27072648,3423.9,3423.4,0.7601]
[1732418520854,1.22525484,3424.0,3423.4,0.7601]
[1732418521013,0.2707178,3423.9,3423.4,0.7601]
[1732418521354,1.22525484,3424.0,3423.4,0.7601]
[1732418521652,0.27070174,3423.9,3423.4,0.7601]
[1732418521857,1.22525484,3424.0,3423.4,0.7601]
[1732418522016,0.27066604,3423.9,3423.4,0.7601]
[1732418522213,1.22525484,3424.3,3423.4,0.7601]
[1732418522458,0.27065723,3424.2,3423.4,0.7601]
[1732418522625,1.22525484,3424.3,3423.4,0.7601]
[1732418522810,1.22525484,3424.3,3423.7,0.2909]
[1732418523011,1.25554848,3424.9,3423.8,0.7601]
[1732418523215,1.22525484,3424.6,3423.8,0.7601]
[1732418523454,0.27065556,3424.5,3423.8,0.7601]
[1732418524942,0.43314848,3424.8,3423.8,0.7601]
[1732418525138,0.27064726,3424.7,3423.8,0.7601]
[1732418525344,0.27064726,3424.6,3423.8,0.7601]
[1732418525567,0.27064726,3424.5,3423.8,0.7601]
[1732418525768,0.43314848,3424.8,3423.8,0.7601]
[1732418525940,0.27066329,3424.7,3423.8,0.7601]
[1732418526158,0.27066329,3424.6,3423.8,0.7601]
[1732418526458,0.27066329,3424.5,3423.8,0.7601]
[1732418526661,0.43314848,3424.8,3423.8,0.7601]
[1732418526832,0.27068771,3424.7,3423.8,0.7601]
[1732418527033,0.27068771,3424.6,3423.8,0.7601]
[1732418527233,0.27068771,3424.5,3423.8,0.7601]
[1732418527557,0.43314848,3424.8,3423.8,0.7601]
[1732418527767,0.27079301,3424.7,3423.8,0.7601]
[1732418527994,0.27079301,3424.6,3423.8,0.7601]
[1732418528289,0.43314848,3424.8,3423.8,0.7601]
[1732418528434,0.27080614,3424.7,3423.8,0.7601]
[1732418528778,0.27080614,3424.6,3423.8,0.7601]
[1732418529079,0.43330706,3424.8,3423.8,0.7601]
[1732418529237,0.27081461,3424.7,3423.8,0.7601]
[1732418529436,0.27081461,3424.6,3423.8,0.7601]
[1732418529638,0.27081461,3424.5,3423.8,0.7601]
[1732418529877,0.43330338,3424.8,3423.8,0.7601]
[1732418530042,0.27082974,3424.7,3423.8,0.7601]
[1732418530248,0.27082974,3424.6,3423.8,0.7601]
[1732418530562,0.27082974,3424.5,3424.0,0.79]
[1732418530876,0.43330338,3424.8,3424.0,0.79]
[1732418531170,0.27082925,3424.7,3424.0,0.79]
[1732418531371,0.27082925,3424.6,3424.0,0.79]
[1732418531600,0.27082925,3424.7,3424.0,0.79]
[1732418531751,0.27082925,3424.6,3424.0,0.79]
[1732418531950,0.27082925,3424.5,3424.0,0.79]
[1732418532251,0.43330338,3424.8,3424.0,0.79]
[1732418532559,0.27090867,3424.7,3424.0,0.79]
[1732418532760,0.27090867,3424.6,3424.0,0.79]
[1732418533097,0.27090867,3424.5,3424.0,0.79]
[1732418533393,0.43330338,3424.8,3424.0,0.79]
[1732418533556,0.27093628,3424.7,3424.0,0.79]
[1732418533753,0.27093628,3424.6,3424.0,0.79]
[1732418533997,0.43330338,3424.8,3424.0,0.79]
[1732418534291,0.27096127,3424.7,3424.0,0.79]
[1732418534454,0.27050945,3424.6,3424.0,0.79]
[1732418534654,0.43330338,3424.8,3424.0,0.79]
[1732418535216,2.78651472,3424.9,3424.0,0.79]
[1732418535863,0.43330338,3425.0,3424.0,0.79]
[1732418536050,3.2198181,3425.3,3424.1,0.8044]
[1732418536251,3.2198181,3425.3,3424.1,1.1830435]
[1732418536507,2.78651472,3425.3,3424.2,0.8044]
[1732418536688,2.78651472,3425.3,3424.3,0.8044]
[1732418537265,3.2198181,3425.3,3424.3,0.8044]
[1732418537500,0.43330338,3425.2,3424.3,0.8044]
[1732418537991,2.78651472,3425.3,3424.3,0.8044]
[1732418538155,2.78651472,3425.3,3424.5,0.8044]
[1732418538752,2.73938812,3425.3,3424.5,0.81113368]
[1732418539266,0.43330338,3425.5,3424.5,0.81113368]
[1732418540693,0.43330338,3425.5,3424.6,0.8044]
[1732418544630,1.22440392,3425.2,3424.6,0.8044]
[1732418546391,0.2709293,3425.1,3424.6,0.8044]
[1732418546590,1.22440392,3425.2,3424.6,0.8044]
[1732418546829,0.27091592,3425.1,3424.6,0.8044]
[1732418547042,1.22440392,3425.2,3424.6,0.8044]
[1732418547229,0.27092153,3425.1,3424.6,0.8044]
[1732418547393,1.22440392,3425.2,3424.6,0.8044]
[1732418547593,0.27098014,3425.1,3424.6,0.8044]
[1732418547788,1.22440392,3425.2,3424.6,0.8044]
[1732418548328,0.27100336,3425.1,3424.6,0.8044]
[1732418548833,1.22440392,3425.2,3424.6,0.8044]
[1732418549034,0.27105852,3425.1,3424.6,0.8044]
[1732418549341,1.22440392,3425.2,3424.6,0.8044]
[1732418549509,0.27113973,3425.1,3424.6,0.8044]
[1732418549832,1.22440392,3425.2,3424.6,0.8044]
[1732418550006,0.27113404,3425.1,3424.6,0.8044]
[1732418550206,0.27113404,3425.0,3424.6,0.8044]
[1732418550439,1.22440392,3424.8,3424.6,0.8044]
[1732418551947,1.22440392,3425.0,3424.6,0.8044]
[1732418552098,0.27121564,3424.9,3424.6,0.8044]
[1732418552410,1.22440392,3425.0,3424.6,0.8044]
[1732418552747,0.27129427,3424.9,3424.6,0.8044]
[1732418553056,0.7843,3425.4,3424.6,0.8044]
[1732418553196,1.49570068,3425.3,3424.6,0.8044]
[1732418553395,0.27129676,3425.2,3424.6,0.8044]
[1732418553641,0.27129676,3425.1,3424.6,0.8044]
[1732418553821,0.27129676,3425.2,3424.6,0.8044]
[1732418554129,1.22440392,3425.3,3424.6,0.8044]
[1732418554130,0.27129676,3425.1,3424.6,0.8044]
[1732418554332,0.27129676,3425.2,3424.6,0.8044]
[1732418554547,0.27003019,3425.1,3424.6,0.8044]
[1732418554842,1.22440392,3425.4,3424.6,0.8044]
[1732418560325,1.22440392,3425.4,3424.7,0.8028]
[1732418560641,0.1,3426.8,3424.5,0.00673368]
[1732418560642,1.22440392,3425.8,3424.9,0.8028]
[1732418560843,0.43422474,3426.1,3425.0,0.95453435]
[1732418561004,0.43422474,3426.1,3425.2,1.0937]
[1732418561203,0.43422474,3426.1,3425.3,0.95453435]
[1732418561400,1.22440392,3426.2,3425.3,0.95453435]
[1732418561662,1.22440392,3426.2,3425.4,0.8028]
[1732418561869,1.22440392,3426.2,3425.4,1.2264435]
[1732418562267,0.43422474,3426.3,3425.4,1.2264435]
[1732418562268,1.22440392,3426.0,3425.4,0.8028]
[1732418563765,1.22440392,3426.0,3425.5,0.8028]
[1732418563966,1.22440392,3426.0,3425.6,0.18018214]
[1732418565107,1.22440392,3426.0,3425.5,0.8028]
[1732418566614,0.27118662,3425.9,3425.5,0.8028]
[1732418566909,1.22440392,3426.0,3425.5,0.8028]
[1732418567096,0.27118863,3425.9,3425.5,0.8028]
[1732418567301,1.22440392,3426.0,3425.5,0.8028]
[1732418567485,0.2711476,3425.9,3425.5,0.8028]
[1732418567669,1.22440392,3426.0,3425.5,0.8028]
[1732418569196,0.27111343,3425.9,3425.5,0.8028]
[1732418569400,1.22440392,3426.0,3425.5,0.8028]
[1732418570835,1.22440392,3426.2,3425.5,0.8028]
[1732418571149,0.27105999,3426.1,3425.5,0.8028]
[1732418571319,0.27105999,3426.0,3425.5,0.8028]
[1732418571517,0.27103643,3425.9,3425.5,0.8028]
[1732418571729,1.22440392,3425.9,3425.5,0.8028]
[1732418571900,1.22440392,3425.9,3424.5,0.00673368]
[1732418571901,1.22440392,3425.7,3425.1,0.8028]
[1732418572841,1.22440392,3425.9,3425.1,0.8028]
[1732418573207,0.27102753,3425.8,3425.1,0.8028]
[1732418573409,0.27102753,3425.7,3425.1,0.8028]
[1732418573615,0.27102753,3425.8,3425.1,0.8028]
[1732418573832,0.27103057,3425.7,3425.1,0.8028]
[1732418574031,1.22440392,3425.9,3425.1,0.8028]
[1732418574231,0.2710252,3425.8,3425.1,0.8028]
[1732418574410,0.2710252,3425.7,3425.1,0.8028]
[1732418574740,1.22440392,3425.9,3425.1,0.8028]
[1732418574946,1.22440392,3425.7,3425.1,0.8028]
[1732418575446,1.22440392,3425.2,3424.7,0.8073]
[1732418577691,1.22440392,3424.8,3424.5,0.00673368]
[1732418577860,1.22440392,3424.6,3424.5,0.00673368]
[1732418578064,1.49527472,3424.6,3424.5,0.00673368]
[1732418578466,1.22440392,3424.6,3424.5,0.00673368]
[1732418578667,1.49518162,3424.6,3424.5,0.00673368]
[1732418579367,1.22440392,3424.6,3424.5,0.00673368]
[1732418580531,1.49512467,3424.6,3424.5,0.00673368]
[1732418581171,1.22440392,3424.6,3424.5,0.00673368]
[1732418581364,2.27751303,3424.6,3424.5,0.00673368]
[1732418584087,2.85718535,3424.6,3424.5,0.00673368]
[1732418584395,0.71218387,3424.5,3423.2,0.8073]
[1732418584715,2.78783576,3424.1,3423.2,0.8073]
[1732418585203,2.78783576,3423.8,3422.4,0.8073]
[1732418585697,2.78783576,3423.5,3422.4,0.8073]
[1732418586191,2.78783576,3423.2,3422.4,0.8073]
[1732418587269,3.57023576,3423.2,3422.4,0.8073]
[1732418587879,2.78783576,3422.9,3422.4,0.8073]
[1732418588099,2.78783576,3422.9,3421.2,0.8073]
[1732418588493,2.78783576,3422.9,3421.2,0.8365224]
[1732418589609,2.78961211,3423.0,3421.2,0.8365224]
[1732418590699,2.78961211,3423.0,3421.2,0.8073]
[1732418591085,2.78961211,3422.7,3421.2,0.8073]
[1732418592489,2.78961211,3422.4,3421.2,0.8073]
[1732418597638,0.8002,3422.9,3421.2,0.8073]
[1732418598008,0.8002,3422.9,3421.4,0.763]
[1732418598208,2.78961211,3423.0,3421.5,0.79222435]
[1732418598936,2.78961211,3423.3,3421.5,0.79222435]
[1732418599134,3.58981211,3423.6,3421.6,0.763]
[1732418599464,3.58981211,3423.6,3421.8,0.763]
[1732418599672,2.78961211,3423.6,3422.0,0.763]
[1732418600452,0.8002,3423.9,3422.0,0.763]
[1732418600453,2.78961211,3423.3,3422.0,0.763]
[1732418603028,2.78961211,3423.6,3422.0,0.763]
[1732418604472,2.78961211,3423.2,3422.0,0.763]
[1732418604681,3.58981211,3423.2,3422.0,0.763]
[1732418605232,3.58981211,3423.5,3422.2,0.763]
[1732418605862,3.58981211,3423.5,3422.3,0.2909]
[1732418606064,3.58981211,3423.5,3422.4,0.763]
[1732418607025,2.78961211,3423.5,3422.5,0.7745]
[1732418607157,2.78961211,3423.5,3422.5,1.21915]
[1732418607472,2.78961211,3423.5,3422.5,1.0654]
[1732418608948,0.50371635,3424.6,3421.6,0.02922094]
[1732418608949,2.78961211,3423.9,3422.6,0.7745]
[1732418609150,0.27014622,3423.8,3422.6,0.7745]
[1732418609379,0.27014622,3423.7,3422.6,0.7745]
[1732418609549,2.78961211,3423.9,3422.6,0.7745]
[1732418609878,0.27029854,3423.8,3422.6,0.7745]
[1732418610052,2.78961211,3423.9,3422.6,0.7745]
[1732418610254,0.27029897,3423.8,3422.7,0.2909]
[1732418610457,2.78961211,3423.9,3423.0,0.7745]
[1732418610802,0.27031977,3423.8,3423.0,0.7745]
[1732418611223,2.78961211,3423.9,3423.0,0.7745]
[1732418611361,0.27033317,3423.8,3423.0,0.7745]
[1732418611676,2.78961211,3423.9,3423.0,0.7745]
[1732418611879,0.27042142,3423.8,3423.0,0.7745]
[1732418612090,0.2704123,3423.7,3423.0,0.7745]
[1732418612300,2.78961211,3423.9,3423.0,0.7745]
[1732418612608,0.27051518,3423.8,3423.0,0.7745]
[1732418612801,0.27051518,3423.7,3423.0,0.7745]
[1732418612974,0.7518,3423.8,3423.0,0.7745]
[1732418613174,0.27050737,3423.7,3423.0,0.7745]
[1732418613488,1.18461622,3423.8,3423.0,0.7745]
[1732418613489,3.06019511,3423.6,3423.0,0.7745]
[1732418613805,2.78287843,3423.2,3422.7,0.7745]
[1732418615185,0.27063304,3423.1,3422.7,0.7745]
[1732418615389,0.27063304,3423.1,3421.5,0.02921946]
[1732418615390,2.78961211,3422.9,3422.2,0.777]
[1732418615907,0.2706561,3422.8,3422.2,0.777]
[1732418616203,2.78961211,3422.9,3422.2,0.777]
[1732418616368,0.27064519,3422.8,3422.2,0.777]
[1732418616568,0.27064519,3422.7,3422.2,0.777]
[1732418616792,2.78961211,3422.9,3422.2,0.777]
[1732418617195,0.27063543,3422.8,3422.2,0.777]
[1732418617359,2.78961211,3422.9,3422.2,0.777]
[1732418617565,2.78961211,3423.2,3422.2,0.777]
[1732418617781,0.27065841,3423.1,3422.2,0.777]
[1732418618076,0.27065841,3423.0,3422.2,0.777]
[1732418618310,0.27065841,3422.9,3422.2,0.777]
[1732418618509,2.78961211,3423.2,3422.2,0.777]
[1732418618734,0.27071823,3423.1,3422.2,0.777]
[1732418619038,0.27071823,3423.0,3422.2,0.777]
[1732418619224,0.27071823,3423.1,3422.2,0.777]
[1732418619429,0.27071823,3423.0,3422.2,0.777]
[1732418619640,0.27071823,3422.9,3422.2,0.777]
[1732418619939,2.78961211,3423.2,3422.2,0.777]
[1732418620142,0.27072597,3423.1,3422.2,0.777]
[1732418620308,0.27072597,3423.0,3422.2,0.777]
[1732418620506,0.27072597,3422.9,3422.2,0.777]
[1732418620845,2.78961211,3423.2,3422.2,0.777]
[1732418621014,0.27072423,3423.1,3422.2,0.777]
[1732418621221,0.27072423,3423.0,3422.2,0.777]
[1732418621396,0.27072423,3423.1,3422.2,0.777]
[1732418621730,0.27072423,3423.0,3422.2,0.777]
[1732418621942,0.27072423,3422.9,3422.2,0.777]
[1732418622243,2.78961211,3423.2,3422.2,0.777]
[1732418622441,0.27074442,3423.1,3422.2,0.777]
[1732418622598,0.27074442,3423.0,3422.2,0.777]
[1732418622936,0.27074442,3422.9,3422.2,0.777]
[1732418623139,2.78961211,3423.2,3422.2,0.777]
[1732418623335,0.27078498,3423.1,3422.2,0.777]
[1732418623540,0.27078498,3423.0,3422.2,0.777]
[1732418623740,0.27078498,3422.9,3422.2,0.777]
[1732418623936,0.27078498,3422.8,3422.2,0.777]
[1732418624235,2.78961211,3423.2,3422.2,0.777]
[1732418624440,0.27082732,3423.1,3422.2,0.777]
[1732418624640,2.78961211,3422.8,3421.9,0.777]
[1732418624841,2.78961211,3422.4,3421.9,0.777]
[1732418624999,0.27080119,3422.3,3421.9,0.777]
[1732418625199,3.56441211,3422.4,3421.9,0.777]
[1732418625518,0.27076376,3422.3,3421.9,0.777]
[1732418625843,3.56441211,3422.4,3421.9,0.777]
[1732418626133,0.27083002,3422.3,3421.9,0.777]
[1732418626340,3.56441211,3422.4,3421.9,0.777]
[1732418626541,0.27085391,3422.3,3421.9,0.777]
[1732418626730,2.78961211,3422.4,3421.9,0.777]
[1732418627050,0.27085581,3422.3,3421.9,0.777]
[1732418627246,2.78961211,3422.4,3421.9,0.777]
[1732418627410,0.2708761,3422.3,3421.9,0.777]
[1732418627601,0.2708709,3422.2,3421.9,0.777]
[1732418627947,2.78961211,3422.4,3421.9,0.777]
[1732418628243,0.27086997,3422.3,3421.1,0.777]
[1732418628442,0.27086997,3422.2,3421.1,0.777]
[1732418628604,2.78961211,3422.4,3421.1,0.777]
[1732418628934,0.27078381,3422.3,3421.1,0.75048293]
[1732418629113,0.27078381,3422.2,3421.1,0.75048293]
[1732418629311,2.78961211,3422.4,3421.1,0.75048293]
[1732418629616,0.27072435,3422.3,3421.1,0.38468669]
[1732418629809,0.27072435,3422.2,3421.1,0.38468669]
[1732418630145,2.78961211,3422.4,3421.0,0.2909]
[1732418630443,0.27067479,3422.3,3421.0,0.2909]
[1732418630640,0.27067479,3422.2,3420.7,0.2909]
[1732418630856,0.27067479,3422.3,3420.9,0.2909]
[1732418631055,0.27067878,3422.2,3420.9,0.2909]
[1732418631214,2.78961211,3422.4,3420.9,0.2909]
[1732418631415,0.2706503,3422.3,3420.9,0.2909]
[1732418631615,0.2706503,3422.2,3420.9,0.2909]
[1732418631816,2.78961211,3422.4,3421.1,0.777]
[1732418632060,0.27064879,3422.3,3421.1,0.777]
[1732418632310,0.27064879,3422.2,3421.1,0.777]
[1732418632510,0.27064879,3422.1,3421.1,0.777]
[1732418632745,0.43303806,3422.3,3421.1,0.777]
[1732418632954,0.27057734,3422.2,3421.1,0.777]
[1732418633154,0.27057734,3422.1,3421.1,0.777]
[1732418633364,2.78961211,3422.4,3421.1,0.777]
[1732418633572,0.27052425,3422.3,3421.1,0.777]
[1732418633728,0.27052425,3422.2,3421.1,0.777]
[1732418633930,0.27052425,3422.1,3421.1,0.777]
[1732418634139,2.78961211,3422.4,3421.1,0.777]
[1732418634334,0.27050455,3422.3,3421.1,0.777]
[1732418634662,0.27050455,3422.2,3421.1,0.777]
[1732418634968,2.78961211,3422.4,3421.1,0.777]
[1732418635263,0.2704718,3422.3,3421.3,0.8226]
[1732418639378,2.78961211,3422.4,3421.3,0.8226]
[1732418639672,0.27045903,3422.3,3421.3,0.8226]
[1732418639867,0.27045903,3422.2,3421.3,0.8226]
[1732418640066,0.27045903,3422.1,3421.3,0.8226]
[1732418640373,0.27045903,3422.0,3421.3,0.8226]
[1732418640531,0.27045903,3421.9,3421.3,0.8226]
[1732418640731,0.8131,3422.1,3421.3,0.8226]
[1732418641045,0.27050317,3422.0,3421.3,0.8226]
[1732418641242,0.70323762,3422.0,3421.3,0.8226]
[1732418641582,0.27050317,3422.0,3421.3,0.8226]
[1732418641766,0.27053712,3421.9,3421.3,0.8226]
[1732418641960,0.4328594,3422.0,3421.3,0.8226]
[1732418641961,0.27053712,3421.8,3421.3,0.8226]
[1732418642268,3.60271211,3422.1,3421.3,0.8226]
[1732418642646,3.37143785,3422.4,3421.3,0.8226]
[1732418642827,0.43300856,3422.3,3421.3,0.8226]
[1732418643538,2.78961211,3422.4,3421.3,0.8226]
[1732418643736,0.01357395,3421.7,3421.3,0.8226]
[1732418644508,0.00172551,3421.7,3421.3,0.8226]
[1732418650593,0.00172551,3421.7,3421.3,1.1139]
[1732418650796,0.00172551,3421.7,3421.4,0.38468669]
[1732418650996,0.00172551,3421.7,3421.5,0.7638]
[1732418651893,0.00172551,3421.7,3421.5,0.79302397]
[1732418652295,0.00172551,3421.7,3421.6,1.0551]
[1732418652456,0.00172551,3421.7,3421.6,1.20200107]
[1732418653598,0.00172551,3421.7,3421.6,1.61590806]
[1732418654469,0.00172551,3421.7,3421.6,1.20200107]
[1732418655304,0.00172551,3421.7,3421.6,1.58668776]
[1732418657199,0.00172551,3421.7,3421.6,1.20200107]
[1732418657588,0.00172551,3421.7,3421.6,1.23122014]
[1732418659305,0.00172551,3421.7,3421.6,1.20200107]
[1732418659699,0.00172551,3421.7,3421.6,1.23122056]
[1732418660502,0.00172551,3421.7,3421.6,1.20200107]
[1732418661428,0.00172551,3421.7,3421.6,1.23122235]
[1732418662192,0.00172551,3421.7,3421.6,1.20200107]
[1732418663441,0.00172551,3421.7,3421.6,1.23122137]
[1732418664350,0.8256,3422.9,3422.2,9.89917449]
[1732418664497,0.8256,3422.9,3422.2,1.0809]
[1732418671455,0.8256,3422.9,3422.1,0.2913]
[1732418678437,0.27109715,3422.8,3422.1,0.2913]
[1732418678642,0.8256,3422.9,3422.1,0.2913]
[1732418678940,0.27109307,3422.8,3422.1,0.2913]
[1732418679148,0.8256,3422.9,3422.1,0.2913]
[1732418679461,0.27122236,3422.8,3422.1,0.2913]
[1732418679760,0.8256,3422.9,3422.1,0.2913]
[1732418680072,0.27123083,3422.8,3422.1,0.2913]
[1732418680275,0.8256,3422.9,3422.1,0.2913]
[1732418680477,0.27143052,3422.8,3422.1,0.2913]
[1732418680790,0.27143052,3422.7,3422.1,0.2913]
[1732418681067,0.8256,3422.9,3422.1,0.2913]
[1732418681226,0.27142142,3422.8,3422.1,0.2913]
[1732418681568,0.27142142,3422.7,3422.1,0.2913]
[1732418681733,0.8256,3422.9,3422.1,0.2913]
[1732418682065,0.27150091,3422.8,3422.1,0.2913]
[1732418682264,0.27150091,3422.7,3422.1,0.2913]
[1732418682451,0.27150091,3422.6,3422.1,0.2913]
[1732418682772,0.8023,3422.6,3421.7,1.0704]
[1732418683064,0.27154925,3422.5,3421.7,1.0704]
[1732418683274,0.27154925,3422.4,3421.7,1.0704]
[1732418683568,0.27154925,3422.3,3421.7,1.0704]
[1732418683771,0.8023,3422.6,3421.7,1.0704]
[1732418683978,0.27146367,3422.5,3421.7,1.0704]
[1732418684274,0.27146367,3422.4,3421.7,1.0704]
[1732418684474,0.27146367,3422.3,3421.7,1.0704]
[1732418684628,0.8023,3422.6,3421.7,1.0704]
[1732418684834,0.27142361,3422.5,3421.7,1.0704]
[1732418685165,0.27142361,3422.4,3421.7,1.0704]
[1732418685370,0.8023,3422.6,3421.7,1.0704]
[1732418685559,0.27140802,3422.5,3421.7,1.0704]
[1732418685875,0.27140798,3422.4,3421.7,1.0704]
[1732418686171,0.8023,3422.6,3421.7,1.0704]
[1732418686376,0.27139195,3422.5,3421.7,1.0704]
[1732418686528,0.8023,3422.6,3421.7,1.0704]
[1732418686735,0.27138786,3422.5,3421.7,1.0704]
[1732418686969,1.22605672,3422.1,3421.5,0.2913]
[1732418687432,1.22605672,3422.1,3421.4,0.78560111]
[1732418687433,0.27129139,3422.0,3421.4,0.78560111]
[1732418687637,1.22605672,3421.8,3421.4,0.00650111]
[1732418688739,0.79909986,3421.9,3421.4,0.00650111]
[1732418689272,0.79909986,3421.9,3420.9,0.2913]
[1732418689450,2.79106893,3421.6,3420.5,1.0704]
[1732418689636,2.79106893,3421.6,3419.8,0.7791]
[1732418689834,0.27101231,3421.5,3419.8,1.16378669]
[1732418690072,2.79106893,3421.6,3419.8,1.16378669]
[1732418690247,0.27099275,3421.5,3419.8,1.16378669]
[1732418690452,0.27099275,3421.4,3419.8,1.16378669]
[1732418690648,2.79106893,3421.6,3419.9,0.38468669]
[1732418690876,0.2707011,3421.5,3420.0,0.7791]
[1732418691038,0.2707011,3421.4,3420.0,1.16378669]
[1732418691238,2.79106893,3421.6,3420.1,0.38468669]
[1732418691663,0.27052073,3421.5,3420.1,0.38468669]
[1732418691864,0.8023,3421.3,3420.1,0.38468669]
[1732418694835,0.8023,3421.3,3420.0,0.7791]
[1732418699695,3.3811846,3421.7,3419.7,0.03423561]
[1732418699696,0.7792,3421.6,3420.1,0.85913556]
[1732418700183,0.7792,3421.8,3420.3,0.2913]
[1732418700354,0.7792,3421.8,3420.4,0.8299]
[1732418703158,0.7792,3421.5,3420.4,0.8299]
[1732418703360,2.79106893,3421.3,3420.4,0.8299]
[1732418703592,0.7792,3421.2,3420.4,0.8299]
[1732418705138,2.79106893,3421.0,3419.8,0.8299]
[1732418705612,2.79106893,3420.7,3419.8,0.8299]
[1732418705759,0.7792,3420.6,3419.8,0.8299]
[1732418706171,2.79106893,3420.4,3419.8,0.8299]
[1732418706489,0.68551713,3421.3,3419.3,0.04689559]
[1732418706490,0.1,3419.6,3419.3,0.04689559]
[1732418706674,0.1,3419.6,3419.1,0.005]
[1732418706675,0.7792,3419.3,3419.1,0.005]
[1732418709712,2.79644135,3419.2,3419.1,0.005]
[1732418711614,2.79644135,3419.2,3418.5,0.005]
[1732418711905,3.57564135,3418.6,3418.5,0.005]
[1732418712997,0.7792,3418.6,3418.5,0.005]
[1732418713297,2.79644135,3418.8,3418.1,0.5849]
[1732418713682,3.57564135,3419.1,3418.1,0.5849]
[1732418714295,2.79644135,3419.1,3418.1,0.5849]
[1732418718728,2.79644135,3419.1,3418.8,0.00650111]
[1732418718935,0.831,3419.0,3418.8,0.00650111]
[1732418719306,0.831,3419.0,3417.7,0.8325]
[1732418719638,2.79644135,3418.6,3417.7,0.8325]
[1732418719797,2.79644135,3418.6,3416.7,0.8325]
[1732418719798,0.831,3418.5,3416.7,0.8325]
[1732418720226,0.831,3418.5,3416.9,0.8325]
[1732418721538,0.831,3418.5,3416.9,1.1238]
[1732418722195,0.831,3418.5,3417.0,0.8325]
[1732418722420,2.79644135,3418.6,3417.0,0.32056137]
[1732418722735,2.79644135,3418.6,3417.1,0.8325]
[1732418723532,0.831,3418.5,3417.1,0.8325]
[1732418724038,2.79644135,3418.6,3417.1,0.8325]
[1732418724334,2.79644135,3418.6,3416.1,2.95]
[1732418724335,2.79644135,3418.6,3417.2,0.02925853]
[1732418724539,2.79695823,3418.5,3417.1,0.7585]
[1732418724695,2.79695823,3418.5,3417.1,0.78776169]
[1732418725821,2.79695823,3418.5,3417.1,0.7585]
[1732418728236,1.34555823,3418.5,3417.1,0.7585]
[1732418729046,0.8306,3418.4,3417.1,0.7585]
[1732418729351,2.79695823,3418.1,3417.1,0.7585]
[1732418729931,3.62755823,3417.7,3417.1,0.7585]
[1732418730100,2.79695823,3417.3,3416.4,0.8133]
[1732418730554,0.8306,3417.7,3416.4,0.8133]
[1732418730555,2.79695823,3416.9,3416.4,0.8133]